bitfinex/quotes_BTCUSD_20241120
["timestamp","ask_amount","ask_price","bid_price","bid_amount"]
[1732119375876,0.06403575,94110.0,94092.0,0.03667904]
[1732119376085,0.15766814,94109.0,94092.0,0.0008568]
[1732119376296,0.06403575,94108.0,94092.0,0.0008568]
[1732119376503,0.06403575,94107.0,94092.0,0.0008568]
[1732119376721,0.06403575,94106.0,94092.0,0.0008568]
[1732119376927,0.06403575,94105.0,94092.0,0.0008568]
[1732119377164,0.17115087,94104.0,94092.0,0.0008568]
[1732119377386,0.01325031,94104.0,94092.0,0.0008568]
[1732119377593,0.14044859,94111.0,94092.0,0.0008568]
[1732119377594,0.06400227,94103.0,94092.0,0.0008568]
[1732119377795,0.06400227,94102.0,94092.0,0.0008568]
[1732119378037,0.10711512,94101.0,94092.0,0.0008568]
[1732119378307,0.03624807,94110.0,94092.0,0.0008568]
[1732119378308,0.06400227,94100.0,94092.0,0.0008568]
[1732119378525,0.05074813,94099.0,94092.0,0.0008568]
[1732119378738,0.05074813,94098.0,94092.0,0.0008568]
[1732119378981,0.05074813,94097.0,94092.0,0.0008568]
[1732119379210,0.05074813,94096.0,94092.0,0.0008568]
[1732119379425,0.03624807,94110.0,94092.0,0.0008568]
[1732119379426,0.01951851,94095.0,94092.0,0.0008568]
[1732119379662,0.17669666,94110.0,94092.0,0.0008568]
[1732119379663,0.01951851,94094.0,94092.0,0.0008568]
[1732119379899,0.00950119,94110.0,94093.0,0.10711512]
[1732119380145,0.5381,94116.0,94094.0,0.11443134]
[1732119380397,0.01952054,94109.0,94100.0,0.01]
[1732119380647,0.0195199,94115.0,94106.0,0.01]
[1732119380884,0.09534599,94136.0,94107.0,0.10711512]
[1732119380885,0.03123779,94135.0,94107.0,0.10711512]
[1732119381147,0.0361033,94130.0,94111.0,0.01]
[1732119381404,0.0361033,94130.0,94124.0,0.0805]
[1732119381615,0.0017136,94136.0,94124.0,0.0805]
[1732119381616,0.0017136,94136.0,94131.0,0.01]
[1732119381888,0.0017136,94136.0,94135.0,0.01]
[1732119382120,0.0017136,94136.0,94135.0,0.11711512]
[1732119382338,0.0017136,94136.0,94100.0,0.002]
[1732119382571,0.0017136,94136.0,94082.0,0.18945386]
[1732119382572,0.01,94132.0,94101.0,0.10711512]
[1732119382812,0.5381,94135.0,94101.0,0.10711512]
[1732119383044,0.0017136,94136.0,94100.0,0.03625596]
[1732119383045,0.01,94131.0,94100.0,0.03625596]
[1732119383277,0.01,94114.0,94071.0,0.0004]
[1732119383490,0.01,94114.0,94083.0,0.0350595]
[1732119383491,0.03125018,94113.0,94083.0,0.0350595]
[1732119383742,0.05078154,94112.0,94083.0,0.0350595]
[1732119384016,0.05078154,94111.0,94083.0,0.0350595]
[1732119384278,0.01953136,94110.0,94083.0,0.0350595]
[1732119384518,0.01953136,94109.0,94083.0,0.0350595]
[1732119384771,0.01953136,94108.0,94083.0,0.1350595]
[1732119385019,0.01953136,94107.0,94083.0,0.1350595]
[1732119385264,0.01953136,94106.0,94083.0,0.1350595]
[1732119385510,0.5736388,94114.0,94083.0,0.1350595]
[1732119385511,0.01953136,94105.0,94083.0,0.1350595]
[1732119385716,0.01953136,94104.0,94083.0,0.0350595]
[1732119385929,0.01953761,94103.0,94083.0,0.0350595]
[1732119386153,0.01953746,94102.0,94083.0,0.0350595]
[1732119386370,0.01953746,94101.0,94085.0,0.1]
[1732119386615,0.03126854,94113.0,94092.0,0.01102812]
[1732119386865,0.5736388,94114.0,94092.0,0.01102812]
[1732119386866,0.05081182,94112.0,94092.0,0.0008568]
[1732119387085,0.01,94111.0,94092.0,0.0008568]
[1732119387316,0.01954395,94110.0,94092.0,0.0008568]
[1732119387546,0.15792939,94110.0,94092.0,0.0008568]
[1732119387760,0.05081427,94109.0,94092.0,0.0008568]
[1732119387982,0.01,94093.0,94092.0,0.0008568]
[1732119388198,0.02954395,94093.0,94092.0,0.0008568]
[1732119388431,0.02954395,94093.0,94034.0,0.0210762]
[1732119388432,0.01,94071.0,94031.0,0.01]
[1732119388645,0.01,94079.0,94050.0,0.10711512]
[1732119389099,0.01,94077.0,94050.0,0.10711512]
[1732119389345,0.01,94075.0,94051.0,0.12861151]
[1732119389576,0.01,94075.0,94053.0,0.1]
[1732119389795,0.01,94075.0,94055.0,0.1]
[1732119390098,0.01,94075.0,94056.0,0.10711512]
[1732119390318,0.01,94075.0,94057.0,0.1]
[1732119390527,0.01,94075.0,94058.0,0.10711512]
[1732119390768,0.01,94075.0,94059.0,0.1]
[1732119390974,0.01,94075.0,94060.0,0.13011275]
[1732119391204,0.01,94075.0,94061.0,0.1]
[1732119391434,0.01,94075.0,94062.0,0.10711512]
[1732119391656,0.01,94075.0,94063.0,0.1]
[1732119391894,0.01,94072.0,94063.0,0.1]
[1732119392120,0.01,94065.0,94039.0,0.0489]
[1732119392338,0.01,94065.0,94046.0,0.12501512]
[1732119392609,0.01,94062.0,94046.0,0.12501512]
[1732119392838,0.01,94062.0,94047.0,0.03040151]
[1732119393063,0.01,94060.0,94048.0,0.10711512]
[1732119393789,0.01,94054.0,94045.0,0.03538779]
[1732119394232,0.01,94044.0,94000.0,0.002]
[1732119394469,0.01,94044.0,94039.0,0.03590966]
[1732119394706,0.01,94044.0,94012.0,0.179]
[1732119394707,0.0099,94044.0,94014.0,0.10817866]
[1732119394951,0.0039,94044.0,94015.0,0.03225617]
[1732119395205,0.0039,94044.0,94014.0,0.10817866]
[1732119395206,0.0039,94027.0,94014.0,0.10711512]
[1732119395439,0.0039,94022.0,94011.0,0.0004]
[1732119395672,0.0039,94021.0,94011.0,0.03623866]
[1732119395917,0.0039,94015.0,94011.0,0.0004]
[1732119396148,0.0039,94014.0,94011.0,0.0004]
[1732119396616,0.0039,94013.0,94011.0,0.0004]
[1732119396623,0.0039,94013.0,93990.0,0.0142471]
[1732119396851,0.0039,94012.0,93992.0,0.10711512]
[1732119397114,0.0039,94012.0,93993.0,0.01423653]
[1732119397350,0.0039,94012.0,93994.0,0.10711512]
[1732119398013,0.0039,94012.0,93995.0,0.1]
[1732119398227,0.0039,94012.0,93997.0,0.1]
[1732119398489,0.0039,94012.0,93991.0,0.03638421]
[1732119398490,0.0039,94012.0,93999.0,0.1]
[1732119398695,0.0039,94012.0,94000.0,0.10711512]
[1732119398955,0.0039,94004.0,93991.0,0.03638421]
[1732119399167,0.0039,94004.0,93992.0,0.10711512]
[1732119399382,0.0039,94004.0,93992.0,0.12495007]
[1732119399615,0.0038,94004.0,93992.0,0.12495007]
[1732119400033,0.0038,94004.0,93993.0,0.1]
[1732119400274,0.0038,94004.0,93995.0,0.1]
[1732119400485,0.03618571,94016.0,93996.0,0.02755814]
[1732119400918,0.01941272,94015.0,93991.0,0.03638421]
[1732119401136,0.01941268,94014.0,93991.0,0.14349933]
[1732119401344,0.0785,94019.0,93992.0,0.01783495]
[1732119401869,0.01940144,94018.0,93992.0,0.01783495]
[1732119402105,0.11337471,94019.0,93992.0,0.01783495]
[1732119402310,0.01940219,94018.0,93993.0,0.01961845]
[1732119402520,0.01940219,94017.0,93993.0,0.01961845]
[1732119402728,0.11337471,94019.0,93994.0,0.01773649]
[1732119403007,0.03487471,94019.0,93994.0,0.12485161]
[1732119403251,0.03487471,94019.0,93995.0,0.01754829]
[1732119403504,0.5381,94028.0,93996.0,0.10711512]
[1732119403716,0.5381,94028.0,93997.0,0.1]
[1732119403961,0.0310298,94047.0,93991.0,0.03638421]
[1732119403962,0.5381,94037.0,93999.0,0.1]
[1732119404184,0.01939174,94036.0,94000.0,0.12782663]
[1732119404404,0.01939365,94044.0,94004.0,0.10711512]
[1732119404650,0.01939365,94044.0,94005.0,0.15271512]
[1732119404875,0.5381,94045.0,94011.0,0.1]
[1732119405099,0.5381,94045.0,94012.0,0.10711512]
[1732119405330,0.5381,94045.0,94013.0,0.1]
[1732119405582,0.5381,94045.0,94001.0,0.01436013]
[1732119405583,0.01,94038.0,93992.0,0.1]
[1732119405818,0.01,94036.0,93994.0,0.1]
[1732119406027,0.01,94033.0,93995.0,0.10711512]
[1732119406241,0.10711512,94032.0,93996.0,0.01577464]
[1732119406453,0.01,94033.0,93997.0,0.10711512]
[1732119406662,0.01939283,94032.0,93997.0,0.10711512]
[1732119407134,0.5381,94037.0,93998.0,0.1]
[1732119407349,0.5381,94037.0,93986.0,0.0206031]
[1732119407350,0.5381,94037.0,94005.0,0.1]
[1732119407577,0.5381,94037.0,93999.0,0.14501789]
[1732119407578,0.5381,94037.0,94006.0,0.10711512]
[1732119407795,0.64521512,94036.0,93990.0,0.0142471]
[1732119408042,0.64521512,94036.0,93992.0,0.10711512]
[1732119408249,0.0193942,94035.0,93992.0,0.10711512]
[1732119408458,0.0193942,94034.0,93992.0,0.10711512]
[1732119408694,0.0193942,94033.0,93992.0,0.10711512]
[1732119408910,0.0193942,94032.0,93993.0,0.01783495]
[1732119409116,0.0193942,94031.0,94000.0,0.6]
[1732119409431,0.0193942,94030.0,94001.0,0.10711512]
[1732119409892,0.56913053,94036.0,94003.0,0.15441512]
[1732119410127,0.5381,94036.0,94005.0,0.1]
[1732119410307,0.5381,94036.0,94007.0,0.1]
[1732119410544,0.03103969,94043.0,94009.0,0.1]
[1732119410783,0.03103969,94043.0,94004.0,0.0767]
[1732119410784,0.05046211,94042.0,94011.0,0.1]
[1732119411002,0.05046211,94042.0,94004.0,0.0767]
[1732119411003,0.05048329,94041.0,94009.0,0.10711512]
[1732119411253,0.01,94029.0,93971.0,0.0004]
[1732119411464,0.15759841,94028.0,93991.0,0.0004]
[1732119411698,0.60185,94027.0,94000.0,0.63564849]
[1732119411920,0.01,94023.0,94000.0,0.6]
[1732119412133,0.17086512,94022.0,94000.0,0.6]
[1732119412349,0.06375,94021.0,94000.0,0.6]
[1732119412552,0.17086512,94020.0,94000.0,0.6]
[1732119412786,0.06375,94019.0,94000.0,0.6]
[1732119412994,0.17086512,94018.0,94000.0,0.6]
[1732119413253,0.58858329,94017.0,94000.0,0.6]
[1732119413456,0.29776512,94016.0,94000.0,0.6008574]
[1732119413710,0.05048329,94015.0,94000.0,0.58690564]
[1732119413929,0.15759841,94014.0,94000.0,0.58690564]
[1732119414143,0.05048329,94013.0,94000.0,0.58690564]
[1732119414346,0.17086512,94012.0,94000.0,0.58690564]
[1732119414579,0.06375,94011.0,94000.0,0.58690564]
[1732119414794,0.15144861,94010.0,94000.0,0.58690564]
[1732119415016,0.04433349,94009.0,94000.0,0.58690564]
[1732119415232,0.01,94007.0,94000.0,0.58690564]
[1732119415438,0.15144861,94006.0,94000.0,0.58690564]
[1732119415656,0.04433349,94005.0,94000.0,0.58690564]
[1732119415905,0.01,94012.0,93971.0,0.0004]
[1732119415906,0.023,93991.0,93971.0,0.0004]
[1732119416111,0.69954861,93990.0,93971.0,0.0004]
[1732119416352,0.15144861,93989.0,93971.0,0.0004]
[1732119416563,0.04433349,93988.0,93971.0,0.0004]
[1732119416777,0.03106678,93987.0,93971.0,0.0004]
[1732119417838,0.03106678,93987.0,93973.0,0.04306259]
[1732119418719,0.03106678,93987.0,93971.0,0.0004]
[1732119418931,0.1381819,93987.0,93971.0,0.0004]
[1732119419163,0.01,93978.0,93923.0,0.03829592]
[1732119419339,0.67633196,93977.0,93943.0,0.04239856]
[1732119419536,0.58250313,93976.0,93944.0,0.10711512]
[1732119419768,0.15151825,93975.0,93945.0,0.01495137]
[1732119419988,0.58250313,93974.0,93943.0,0.04239856]
[1732119420348,0.58250313,93974.0,93944.0,0.10711512]
[1732119420349,0.04440313,93973.0,93944.0,0.10711512]
[1732119420554,0.04440313,93972.0,93945.0,0.01071151]
[1732119420760,0.03113306,93971.0,93946.0,0.10711512]
[1732119420955,0.03113306,93970.0,93947.0,0.0821]
[1732119421194,0.0802,94000.0,93949.0,0.1]
[1732119421195,0.03113306,93969.0,93949.0,0.1]
[1732119421395,0.04384735,93982.0,93949.0,0.20711512]
[1732119421518,0.13828401,93981.0,93950.0,0.02071151]
[1732119421731,0.03116889,93980.0,93952.0,0.1]
[1732119421938,0.03116889,93979.0,93954.0,0.1]
[1732119422192,0.03116889,93978.0,93956.0,0.1]
[1732119422399,0.03116889,93977.0,93958.0,0.1]
[1732119422599,0.03116889,93976.0,93961.0,0.0799]
[1732119422827,0.10711512,93997.0,93963.0,0.1]
[1732119423035,0.03118426,93996.0,93964.0,0.14581663]
[1732119423234,0.03118426,93995.0,93964.0,0.10711512]
[1732119423454,0.03118426,93994.0,93965.0,0.02870151]
[1732119423653,0.03118426,93993.0,93966.0,0.10711512]
[1732119423870,0.023,93990.0,93952.0,0.08804795]
[1732119424068,0.01,93975.0,93930.0,0.077]
[1732119424309,0.67639938,93974.0,93937.0,0.10711512]
[1732119424499,0.67643455,93974.0,93937.0,0.10711512]
[1732119424747,0.03121943,93973.0,93937.0,0.10711512]
[1732119424916,0.5381,93974.0,93938.0,0.01071151]
[1732119425121,0.10711512,93973.0,93938.0,0.01071151]
[1732119425335,0.5381,93974.0,93940.0,0.1]
[1732119425578,0.5381,93987.0,93942.0,0.1]
[1732119425784,0.10711512,93986.0,93944.0,0.1]
[1732119426043,0.10711512,93986.0,93965.0,0.0008577]
[1732119426256,0.5381,93985.0,93965.0,0.0008577]
[1732119426476,0.10711512,93984.0,93965.0,0.0008577]
[1732119426692,0.0429078,93988.0,93965.0,0.0008577]
[1732119426693,0.01949424,93983.0,93965.0,0.0008577]
[1732119426927,0.01949424,93982.0,93965.0,0.0008577]
[1732119427142,0.0429078,93988.0,93965.0,0.0008577]
[1732119427143,0.01949424,93981.0,93965.0,0.0008577]
[1732119427363,0.01949424,93980.0,93966.0,0.10711512]
[1732119427577,0.01949424,93979.0,93967.0,0.01079728]
[1732119427786,0.01949424,93978.0,93969.0,0.1]
[1732119428036,0.01949424,93977.0,93971.0,0.1]
[1732119428243,0.5381,94017.0,93971.0,0.1]
[1732119428244,0.01949424,93976.0,93972.0,0.02211895]
[1732119428501,0.65521512,94016.0,93973.0,0.10711512]
[1732119428718,0.10711512,94010.0,93973.0,0.10711512]
[1732119428952,0.01949739,94009.0,93973.0,0.10711512]
[1732119429180,0.01949739,94008.0,93974.0,0.02317392]
[1732119429407,0.01949739,94007.0,93976.0,0.1]
[1732119429614,0.01949739,94007.0,93974.0,0.02317392]
[1732119429615,0.01949739,94006.0,93978.0,0.1]
[1732119429846,0.03276561,94005.0,93980.0,0.1]
[1732119430051,0.5381,94014.0,93982.0,0.1]
[1732119430052,0.03276561,94004.0,93982.0,0.1]
[1732119430281,0.03276561,94003.0,93984.0,0.1]
[1732119430509,0.03276561,94002.0,93985.0,0.10711512]
[1732119430721,0.03276561,94001.0,93986.0,0.049]
[1732119430941,0.03276561,94000.0,93987.0,0.13372663]
[1732119431213,0.03276561,93999.0,93988.0,0.0822]
[1732119431422,0.5381,94014.0,93989.0,0.13082935]
[1732119431636,0.5381,94036.0,93989.0,0.13082935]
[1732119431845,0.18710348,94045.0,93990.0,0.11769695]
[1732119431846,0.10711512,94035.0,93990.0,0.11769695]
[1732119432073,0.58081087,94038.0,93992.0,0.20711512]
[1732119432304,0.58081087,94038.0,93996.0,0.10711512]
[1732119432305,0.04271087,94038.0,93996.0,0.10711512]
[1732119432594,0.0017154,94045.0,94002.0,0.1]
[1732119432790,0.0017154,94045.0,94005.0,0.0816]
[1732119433037,0.0017154,94045.0,94011.0,0.1]
[1732119433250,0.0017154,94045.0,94013.0,0.15491512]
[1732119433467,0.0017154,94045.0,94014.0,0.1]
[1732119433750,0.0017154,94045.0,94016.0,0.1]
[1732119433932,0.0017154,94045.0,94017.0,0.13260663]
[1732119434170,0.0017154,94045.0,94018.0,0.1]
[1732119434407,0.0017154,94045.0,94020.0,0.1]
[1732119434641,0.0017154,94045.0,94022.0,0.1]
[1732119434849,0.0017154,94045.0,94024.0,0.1]
[1732119435098,0.0017154,94045.0,94026.0,0.1]
[1732119435307,0.0017154,94045.0,94028.0,0.1]
[1732119435515,0.0017154,94045.0,94030.0,0.1]
[1732119435733,0.0017154,94045.0,94031.0,0.10711512]
[1732119436770,0.0017154,94045.0,94032.0,0.1]
[1732119436973,0.0017154,94045.0,94033.0,0.10711512]
[1732119437452,0.0017154,94045.0,94013.0,0.0478]
[1732119437674,0.66821512,94044.0,93994.0,0.0767]
[1732119437875,0.023,94042.0,93997.0,0.10711512]
[1732119438088,0.01,94035.0,93995.0,0.01265]
[1732119438333,0.01,94033.0,93996.0,0.013915]
[1732119438543,0.01,94031.0,93976.0,0.0767]
[1732119438754,0.10711512,94030.0,93977.0,0.12997663]
[1732119438995,0.10711512,94030.0,93977.0,0.10661512]
[1732119439635,0.09330374,94028.0,93977.0,0.10661512]
[1732119439848,0.09330374,94026.0,93978.0,0.1]
[1732119440076,0.20041886,94025.0,93980.0,0.1]
[1732119440336,0.20041886,94025.0,93981.0,0.10711512]
[1732119440337,0.09330374,94022.0,93981.0,0.10711512]
[1732119440579,0.09330374,94018.0,93982.0,0.03054656]
[1732119440795,0.09330374,94016.0,93983.0,0.10711512]
[1732119441027,0.17470374,94014.0,93975.0,0.0498]
[1732119441254,0.10711512,94013.0,93976.0,0.10711512]
[1732119441479,0.10711512,93993.0,93932.0,0.127]
[1732119441703,0.09121512,93992.0,93933.0,0.00106424]
[1732119441906,0.10711512,93991.0,93951.0,0.0430231]
[1732119442347,0.42633512,93991.0,93951.0,0.0430231]
[1732119442846,0.42633512,93991.0,93933.0,0.1]
[1732119443051,0.13011512,93990.0,93932.0,0.127]
[1732119443304,0.033,93979.0,93932.0,0.127]
[1732119443512,0.10711512,93978.0,93932.0,0.127]
[1732119443751,0.01,93968.0,93935.0,0.04305104]
[1732119443959,0.42633512,93967.0,93935.0,0.04305104]
[1732119444202,0.42633512,93967.0,93932.0,0.127]
[1732119444409,0.023,93958.0,93915.0,0.04243005]
[1732119444620,0.19833024,93957.0,93915.0,0.04243005]
[1732119444823,0.51755024,93957.0,93915.0,0.04243005]
[1732119445254,0.033,93955.0,93915.0,0.04243005]
[1732119445498,0.10711512,93954.0,93915.0,0.04243005]
[1732119445715,0.023,93947.0,93915.0,0.04243005]
[1732119445919,0.51755024,93946.0,93915.0,0.04243005]
[1732119446131,0.51755024,93946.0,93906.0,0.0009275]
[1732119446132,0.41043512,93946.0,93906.0,0.0009275]
[1732119446562,0.10711512,93945.0,93906.0,0.0009275]
[1732119446856,0.023,93942.0,93906.0,0.0009275]
[1732119447092,0.42633512,93941.0,93906.0,0.0009275]
[1732119447300,0.32633512,93941.0,93906.0,0.0009275]
[1732119448397,0.10711512,93940.0,93906.0,0.0009275]
[1732119448613,0.31922,93941.0,93906.0,0.0009275]
[1732119448846,0.04225324,93946.0,93906.0,0.0009275]
[1732119448847,0.31922,93939.0,93906.0,0.0009275]
[1732119449101,0.31922,93939.0,93924.0,0.10711512]
[1732119449355,0.31922,93939.0,93925.0,0.01079735]
[1732119449590,0.31922,93939.0,93921.0,0.0471]
[1732119450023,0.31922,93939.0,93906.0,0.0009275]
[1732119451157,0.36227521,93939.0,93906.0,0.0009275]
[1732119452315,0.75,93925.0,93906.0,0.0009275]
[1732119452528,0.75,93925.0,93923.0,0.10797352]
[1732119452958,0.75,93925.0,93924.0,0.10711512]
[1732119454957,0.723,93925.0,93924.0,0.10711512]
[1732119456181,0.723,93925.0,93923.0,0.0008584]
[1732119457112,0.723,93925.0,93924.0,0.10711512]
[1732119457848,0.723,93925.0,93923.0,0.0008584]
[1732119459013,0.76540049,93925.0,93923.0,0.0008584]
[1732119459448,0.31922,93924.0,93923.0,0.0008584]
[1732119460191,0.106436,93953.0,93923.0,0.0008584]
[1732119460408,0.023,93950.0,93923.0,0.0008584]
[1732119460613,0.10711512,93949.0,93923.0,0.0008584]
[1732119460884,0.04248248,93961.0,93923.0,0.0008584]
[1732119461064,0.64521512,93960.0,93924.0,0.10711512]
[1732119461519,0.31935,93959.0,93924.0,0.10711512]
[1732119461723,0.10711512,93958.0,93924.0,0.10711512]
[1732119461930,0.31935,93959.0,93933.0,0.01]
[1732119462136,0.31935,93957.0,93934.0,0.10711512]
[1732119462563,0.31935,93957.0,93926.0,0.01]
[1732119462782,0.31935,93957.0,93927.0,0.10711512]
[1732119462993,0.0017164,93941.0,93928.0,0.01179735]
[1732119463218,0.0017164,93941.0,93929.0,0.10711512]
[1732119463440,0.31935,93940.0,93929.0,0.10711512]
[1732119464535,0.31935,93940.0,93923.0,0.0008584]
[1732119464983,0.31935,93940.0,93924.0,0.11711512]
[1732119465419,0.31935,93940.0,93926.0,0.01]
[1732119465638,0.31935,93940.0,93927.0,0.10711512]
[1732119465852,0.31935,93940.0,93932.0,0.01]
[1732119466096,0.31935,93940.0,93933.0,0.11711512]
[1732119466320,0.31935,93940.0,93926.0,0.01]
[1732119466545,0.31935,93940.0,93927.0,0.11891247]
[1732119466754,0.31935,93940.0,93927.0,0.10711512]
[1732119466968,0.31935,93940.0,93932.0,0.01]
[1732119467210,0.31935,93940.0,93933.0,0.10711512]
[1732119467458,0.31835,93940.0,93933.0,0.10711512]
[1732119467703,0.31835,93940.0,93934.0,0.01171151]
[1732119467926,0.31835,93940.0,93935.0,0.10711512]
[1732119469079,0.31835,93940.0,93937.0,0.01]
[1732119469288,0.31835,93940.0,93938.0,0.10711512]
[1732119469500,0.31835,93940.0,93932.0,0.01]
[1732119469712,0.31835,93940.0,93933.0,0.10711512]
[1732119469974,0.29135,93940.0,93933.0,0.10711512]
[1732119470697,0.29135,93940.0,93934.0,0.01]
[1732119470911,0.29135,93940.0,93935.0,0.10711512]
[1732119471161,0.29135,93940.0,93936.0,0.01]
[1732119471368,0.29135,93940.0,93937.0,0.11941163]
[1732119471827,0.29135,93940.0,93932.0,0.00585]
[1732119472591,0.29135,93940.0,93915.0,0.1]
[1732119472798,0.29135,93940.0,93923.0,0.10797352]
[1732119473007,0.29135,93940.0,93923.0,0.0008584]
[1732119474283,0.10711512,93939.0,93923.0,0.0008584]
[1732119474504,0.29135,93940.0,93923.0,0.0008584]
[1732119474729,0.29135,93938.0,93923.0,0.0008584]
[1732119475680,0.10711512,93937.0,93923.0,0.0008584]
[1732119475914,0.29135,93938.0,93923.0,0.0008584]
[1732119476120,0.29135,93936.0,93923.0,0.0008584]
[1732119477263,0.10711512,93935.0,93923.0,0.0008584]
[1732119477760,0.29135,93934.0,93923.0,0.0008584]
[1732119477970,0.13011512,93933.0,93875.0,1.84653311]
[1732119478154,0.023,93931.0,93895.0,0.10711512]
[1732119478399,0.5381,93932.0,93895.0,0.10711512]
[1732119478400,0.023,93929.0,93895.0,0.10211512]
[1732119478649,0.10711512,93928.0,93896.0,0.01021151]
[1732119478889,0.10711512,93928.0,93896.0,0.11732663]
[1732119479096,0.39846512,93928.0,93896.0,0.10711512]
[1732119479350,0.39846512,93928.0,93876.0,0.1]
[1732119479579,0.82945,93928.0,93881.0,0.10711512]
[1732119479819,0.82945,93928.0,93889.0,0.1]
[1732119479820,0.29135,93928.0,93889.0,0.1]
[1732119480713,0.29135,93928.0,93906.0,0.10711512]
[1732119480937,0.29135,93928.0,93895.0,0.1]
[1732119481147,0.33503586,93928.0,93907.0,0.10711512]
[1732119482816,0.33503586,93928.0,93896.0,0.0897065]
[1732119483031,0.33503586,93928.0,93897.0,0.10711512]
[1732119484404,0.01,93924.0,93874.0,0.125]
[1732119484638,0.11588449,93926.0,93888.0,0.10711512]
[1732119484639,0.106478,93916.0,93888.0,0.10711512]
[1732119484859,0.01,93920.0,93875.0,1.88889407]
[1732119484860,0.023,93914.0,93875.0,1.88889407]
[1732119485093,0.03024078,93894.0,93875.0,1.84653311]
[1732119485367,0.02861545,93893.0,93875.0,1.84653311]
[1732119485579,0.29135,93893.0,93875.0,1.84653311]
[1732119487244,0.09330293,93892.0,93875.0,1.84739171]
[1732119487459,0.09330293,93891.0,93875.0,1.84739171]
[1732119487673,0.09330293,93890.0,93875.0,1.84739171]
[1732119488109,0.29135,93891.0,93875.0,1.84739171]
[1732119488110,0.29135,93889.0,93875.0,1.84739171]
[1732119488357,0.38465293,93889.0,93875.0,1.84739171]
[1732119488554,0.38465293,93889.0,93875.0,1.95450683]
[1732119488555,0.09330293,93888.0,93875.0,1.95450683]
[1732119488761,0.09330293,93888.0,93876.0,0.10711512]
[1732119488988,0.29135,93889.0,93876.0,0.10711512]
[1732119489196,0.38465293,93889.0,93876.0,0.10711512]
[1732119489409,0.38465293,93889.0,93875.0,1.84739171]
[1732119489410,0.09330293,93884.0,93875.0,1.84739171]
[1732119489668,0.29135,93889.0,93875.0,1.84739171]
[1732119489865,0.29135,93883.0,93875.0,1.84739171]
[1732119490078,0.29135,93883.0,93875.0,1.79955432]
[1732119490327,0.38465293,93883.0,93875.0,1.79955432]
[1732119490528,0.29135,93883.0,93875.0,1.79955432]
[1732119490978,0.09330293,93881.0,93875.0,1.79955432]
[1732119491208,0.10711512,93882.0,93875.0,1.79955432]
[1732119491209,0.09330293,93878.0,93875.0,1.79955432]
[1732119491407,0.10711512,93877.0,93875.0,1.79955432]
[1732119491657,0.01943088,93876.0,93875.0,1.79955432]
[1732119491859,0.126546,93876.0,93875.0,1.79955432]
[1732119492066,0.31078088,93876.0,93875.0,1.79955432]
[1732119492544,0.41789012,93876.0,93875.0,1.79955432]
[1732119492775,0.310775,93876.0,93875.0,1.26801897]
[1732119493031,0.41789012,93876.0,93875.0,1.26801897]
[1732119493663,0.4489679,93876.0,93875.0,1.26801897]
[1732119493872,0.41789012,93876.0,93875.0,1.31801897]
[1732119494133,0.97899012,93876.0,93875.0,1.29405103]
[1732119494345,1.01003475,93876.0,93875.0,1.29405103]
[1732119494556,0.310775,93876.0,93875.0,1.29405103]
[1732119495249,0.29135,93876.0,93875.0,1.29405103]
[1732119495492,0.31075254,93876.0,93875.0,1.29405103]
[1732119495706,0.3223942,93876.0,93875.0,1.29405103]
[1732119495921,0.29135,93876.0,93875.0,1.29405103]
[1732119496151,0.31074562,93876.0,93875.0,1.29405103]
[1732119496387,0.04210908,93882.0,93876.0,0.68925438]
[1732119496647,0.03103142,93899.0,93877.0,0.10711512]
[1732119496824,0.09317197,93918.0,93877.0,0.10711512]
[1732119497074,0.13975796,93922.0,93880.0,0.10711512]
[1732119497290,0.13975796,93922.0,93876.0,0.68925438]
[1732119497291,0.04341869,93918.0,93876.0,0.68925438]
[1732119497523,0.5381,93921.0,93876.0,0.68925438]
[1732119497524,0.10711512,93917.0,93877.0,0.10711512]
[1732119497756,0.01,93920.0,93878.0,0.0496]
[1732119498023,0.03104678,93926.0,93879.0,0.10711512]
[1732119498255,0.65521512,93927.0,93886.0,0.10711512]
[1732119498256,0.04258513,93925.0,93886.0,0.10711512]
[1732119498471,0.04258513,93925.0,93880.0,0.1]
[1732119498472,0.31948,93925.0,93893.0,0.10711512]
[1732119498754,0.31948,93925.0,93879.0,0.0786]
[1732119498755,0.31948,93925.0,93894.0,0.34303313]
[1732119499038,0.31948,93925.0,93894.0,0.23221512]
[1732119500306,0.31948,93925.0,93900.0,0.10711512]
[1732119500536,0.31948,93925.0,93901.0,0.02322151]
[1732119500781,0.31948,93925.0,93902.0,0.10711512]
[1732119500980,0.31948,93925.0,93901.0,0.02322151]
[1732119501252,0.31948,93925.0,93910.0,0.10711512]
[1732119501501,0.31948,93925.0,93914.0,0.0766]
[1732119501718,0.31948,93925.0,93924.0,0.10711512]
[1732119501940,0.0017172,93928.0,93925.0,0.01]
[1732119502156,0.04506618,93940.0,93933.0,0.01]
[1732119502157,0.0017164,93940.0,93933.0,0.01]
[1732119502417,0.0017164,93940.0,93926.0,0.0834645]
[1732119502418,0.0017164,93940.0,93939.0,0.10711512]
[1732119502681,0.07362107,93993.0,93946.0,0.01]
[1732119502944,0.0806,93998.0,93965.0,0.10711512]
[1732119502945,0.03109807,93998.0,93965.0,0.10711512]
[1732119503159,0.03109807,93998.0,93956.0,0.01]
[1732119503160,0.03109807,94004.0,93972.0,0.0488]
[1732119503365,0.03109807,94012.0,93983.0,0.20711512]
[1732119503571,0.03109807,94012.0,93984.0,0.19296389]
[1732119503785,0.0004,94019.0,93991.0,0.01]
[1732119504238,0.0004,94019.0,93998.0,0.21711512]
[1732119504458,0.0004,94019.0,93998.0,0.22882663]
[1732119504725,0.0004,94019.0,93998.0,0.10711512]
[1732119505139,0.04369078,94014.0,93998.0,0.10711512]
[1732119506029,0.0004,94019.0,93998.0,0.10711512]
[1732119506552,0.0004,94019.0,93985.0,0.0573]
[1732119506553,0.0004,94019.0,93999.0,0.10711512]
[1732119506773,0.0004,94019.0,94000.0,0.01071151]
[1732119507023,0.0004,94019.0,93999.0,0.10711512]
[1732119507024,0.0004,94019.0,94003.0,0.10711512]
[1732119507298,0.0004,94019.0,94001.0,0.10711512]
[1732119507513,0.0004,94019.0,93978.0,0.1]
[1732119507721,0.212727,94017.0,93985.0,0.10711512]